bitfinex-derivatives/quotes_BTCF0:USTF0_20241214
["timestamp","ask_amount","ask_price","bid_price","bid_amount"]
[1734201273174,0.68794601,100940.0,100930.0,0.17794457]
[1734201273581,0.68794601,100940.0,100930.0,0.41541806]
[1734201274075,0.68794601,100940.0,100930.0,0.17794457]
[1734201274464,0.68794601,100940.0,100930.0,0.41541806]
[1734201274869,0.56972472,100940.0,100930.0,0.41541806]
[1734201275070,0.68794601,100940.0,100930.0,0.41541806]
[1734201275672,0.83576687,100940.0,100930.0,0.17794457]
[1734201279480,0.83576687,100940.0,100930.0,0.22748557]
[1734201280567,0.67637815,100940.0,100930.0,0.22748557]
[1734201281465,0.55815686,100940.0,100930.0,0.22748557]
[1734201281871,0.67650656,100940.0,100930.0,0.54071279]
[1734201282071,0.67650656,100940.0,100930.0,0.60351279]
[1734201282072,0.5286857,100940.0,100930.0,0.60351279]
[1734201282479,0.5286857,100940.0,100930.0,0.42556822]
[1734201282869,0.410336,100940.0,100930.0,0.18809473]
[1734201286675,0.50442472,100940.0,100930.0,0.18809473]
[1734201286873,0.50442472,100940.0,100930.0,0.09289473]
[1734201287075,0.7709338,100940.0,100930.0,0.33039377]
[1734201287476,0.7709338,100940.0,100930.0,0.28085277]
[1734201287785,0.71618532,100940.0,100930.0,0.45899253]
[1734201289986,0.71618532,100940.0,100930.0,0.4156388]
[1734201291180,0.71618532,100940.0,100930.0,0.28704004]
[1734201291479,0.5583966,100940.0,100930.0,0.28704004]
[1734201291686,0.67684201,100940.0,100930.0,0.31914004]
[1734201294389,0.67684201,100940.0,100930.0,0.36249164]
[1734201295888,0.5583966,100940.0,100930.0,0.36249164]
[1734201296084,0.65248532,100940.0,100930.0,0.36249164]
[1734201296884,0.65248532,100940.0,100930.0,0.28085064]
[1734201297091,0.71458532,100940.0,100930.0,0.28085064]
[1734201297293,0.71458532,100940.0,100930.0,0.45898463]
[1734201298386,0.71458532,100940.0,100930.0,0.28085064]
[1734201298587,0.89225804,100940.0,100930.0,0.45899852]
[1734201299386,0.89225804,100940.0,100930.0,0.22149948]
[1734201300487,0.74419744,100940.0,100930.0,0.22149948]
[1734201301491,0.74419744,100940.0,100930.0,0.45899852]
[1734201301690,0.89231659,100940.0,100930.0,0.45899852]
[1734201301890,0.74419744,100940.0,100930.0,0.45899852]
[1734201302089,0.74419744,100940.0,100930.0,0.22149948]
[1734201302387,0.74419744,100940.0,100920.0,0.41564474]
[1734201302388,0.049541,100930.0,100920.0,0.41564474]
[1734201302595,0.68321405,100930.0,100920.0,0.45900065]
[1734201305399,0.68321405,100930.0,100920.0,0.41564474]
[1734201308195,0.55842533,100930.0,100920.0,0.46519074]
[1734201308398,0.67682701,100930.0,100920.0,0.28704504]
[1734201308592,0.67682701,100930.0,100920.0,0.4651318]
[1734201308790,0.67682701,100930.0,100920.0,0.50848938]
[1734201308995,0.67682701,100930.0,100920.0,0.28704504]
[1734201308996,0.52874268,100930.0,100920.0,0.28704504]
[1734201309192,0.16794268,100930.0,100920.0,0.72005423]
[1734201309388,0.67682501,100940.0,100930.0,0.049541]
[1734201309588,0.52874068,100940.0,100930.0,0.42439645]
[1734201309792,0.52874068,100940.0,100930.0,0.42710773]
[1734201310796,0.53776549,100940.0,100930.0,0.42710773]
[1734201312099,0.52874068,100940.0,100930.0,0.42710773]
[1734201312498,0.11840168,100940.0,100930.0,1.41373977]
[1734201312692,0.11840168,100940.0,100930.0,1.17632377]
[1734201313007,0.52923368,100950.0,100940.0,0.049536]
[1734201313300,0.52923368,100950.0,100940.0,0.33023711]
[1734201313608,0.52873368,100950.0,100940.0,0.28688638]
[1734201314107,0.52923368,100950.0,100940.0,0.50820886]
[1734201314995,0.52873368,100950.0,100940.0,0.28688638]
[1734201315195,0.63172713,100950.0,100940.0,0.28688638]
[1734201315407,0.87390018,100950.0,100940.0,0.22130234]
[1734201315598,0.7886985,100950.0,100930.0,0.41530666]
[1734201315799,0.049541,100930.0,100920.0,0.41530666]
[1734201316104,0.62276774,100930.0,100920.0,0.4586633]
[1734201316303,0.62276774,100930.0,100920.0,0.41530666]
[1734201316692,0.52867902,100930.0,100920.0,0.45866323]
[1734201316891,0.52867902,100930.0,100920.0,0.4762851]
[1734201317206,0.52867902,100930.0,100920.0,0.42555173]
[1734201317701,0.62276774,100930.0,100920.0,0.42555173]
[1734201317908,0.52867902,100930.0,100920.0,0.42555173]
[1734201318201,0.52867902,100930.0,100920.0,0.38219638]
[1734201318504,0.62276774,100930.0,100920.0,0.38219638]
[1734201318703,0.62276774,100930.0,100920.0,0.41532817]
[1734201319406,0.52867902,100930.0,100920.0,0.46487417]
[1734201320505,0.52867902,100930.0,100920.0,0.60231828]
[1734201320804,0.52867902,100930.0,100920.0,0.57162956]
[1734201320997,0.52867902,100930.0,100920.0,0.39365177]
[1734201321197,0.47913802,100930.0,100920.0,0.48774049]
[1734201321907,0.11833802,100930.0,100920.0,0.48774049]
[1734201322297,0.47913802,100930.0,100920.0,0.39365177]
[1734201322605,0.47913802,100930.0,100920.0,0.112946]
[1734201322606,0.62276774,100930.0,100920.0,0.112946]
[1734201322797,0.62276774,100930.0,100920.0,0.35023525]
[1734201322798,0.52867902,100930.0,100920.0,0.35023525]
[1734201324804,0.62276774,100930.0,100920.0,0.45861855]
[1734201325105,0.65496774,100930.0,100920.0,0.45861855]
[1734201325306,0.65496774,100930.0,100920.0,0.2213293]
[1734201326105,0.80305207,100930.0,100920.0,0.17797391]
[1734201331317,0.81192749,100930.0,100920.0,0.17797391]
[1734201332007,0.049546,100920.0,100910.0,0.41524345]
[1734201332208,0.77081725,100920.0,100910.0,0.22131588]
[1734201332415,0.62273292,100920.0,100910.0,0.22131588]
[1734201333014,0.62273292,100920.0,100910.0,0.1784542]
[1734201334116,0.62273292,100920.0,100910.0,0.1779542]
[1734201335017,0.62273292,100920.0,100910.0,0.1784542]
[1734201336006,0.62273292,100920.0,100910.0,0.1779542]
[1734201337111,0.62273292,100920.0,100910.0,0.1784542]
[1734201338115,0.71141191,100920.0,100910.0,0.1784542]
[1734201340115,0.71141191,100920.0,100910.0,0.1779542]
[1734201342105,0.62273292,100920.0,100910.0,0.1779542]
[1734201343305,0.5286442,100920.0,100910.0,0.2275052]
[1734201343511,0.61734501,100920.0,100910.0,0.50815535]
[1734201343708,0.61734501,100920.0,100910.0,0.53985535]
[1734201345413,0.61734501,100920.0,100910.0,0.36190115]
[1734201345914,0.5286442,100920.0,100910.0,0.36190115]
[1734201346617,0.5286442,100920.0,100910.0,0.31854025]
[1734201347414,0.5286442,100920.0,100910.0,0.36189837]
[1734201347916,0.61745731,100920.0,100910.0,0.36189837]
[1734201348116,0.61745731,100920.0,100910.0,0.8912823]
[1734201348713,0.20711131,100920.0,100910.0,0.98545039]
[1734201349617,0.08881311,100920.0,100910.0,1.10896114]
[1734201349821,0.08881311,100920.0,100910.0,1.4652097]
[1734201350110,0.08881311,100920.0,100910.0,1.47389209]
[1734201350310,0.08881311,100920.0,100910.0,1.11764353]
[1734201350513,0.08881311,100920.0,100910.0,1.47389209]
[1734201350918,0.08881311,100920.0,100910.0,1.17720412]
[1734201351515,0.61745431,100930.0,100920.0,0.049546]
[1734201351715,0.61745431,100930.0,100920.0,0.69140942]
[1734201352421,0.61745431,100930.0,100920.0,0.35127063]
[1734201352422,0.5286412,100930.0,100920.0,0.35127063]
[1734201352627,0.4790982,100930.0,100920.0,0.74214013]
[1734201352926,0.08882782,100930.0,100920.0,1.14136739]
[1734201353122,0.08882782,100930.0,100920.0,1.49761595]
[1734201353324,0.08882782,100930.0,100920.0,1.79761595]
[1734201353620,0.20712602,100940.0,100930.0,0.049541]
[1734201353827,0.08882782,100940.0,100930.0,1.01307261]
[1734201354022,0.08932782,100940.0,100930.0,1.10716133]
[1734201354217,0.08932782,100940.0,100930.0,1.46340989]
[1734201354418,0.0005,100940.0,100930.0,0.81048161]
[1734201354622,0.0005,100940.0,100930.0,1.46321841]
[1734201355029,0.08882782,100950.0,100930.0,1.41367741]
[1734201355225,0.08882782,100950.0,100940.0,0.4646156]
[1734201355523,0.08882782,100950.0,100940.0,0.60205758]
[1734201355724,0.08882782,100950.0,100940.0,0.66415758]
[1734201357223,0.08882782,100950.0,100940.0,0.62080432]
[1734201357423,0.56792602,100960.0,100950.0,0.049531]
[1734201357629,0.56792602,100960.0,100950.0,0.17541972]
[1734201357931,0.44962782,100960.0,100950.0,0.17541972]
[1734201358128,0.45871195,100960.0,100950.0,0.17541972]
[1734201358430,0.3608,100960.0,100950.0,0.35331098]
[1734201358829,0.44962782,100960.0,100950.0,0.35331098]
[1734201359528,0.56792602,100970.0,100960.0,0.049527]
[1734201360038,0.44962782,100970.0,100960.0,0.049527]
[1734201360234,0.08882782,100970.0,100960.0,0.22741826]
[1734201360535,0.600712,100980.0,100970.0,0.049522]
[1734201360833,0.4511138,100980.0,100970.0,0.049522]
[1734201361224,0.44962782,100980.0,100970.0,0.049522]
[1734201363438,0.3608,100980.0,100970.0,0.049522]
[1734201365029,0.3613,100980.0,100970.0,0.049522]
[1734201366026,0.3613,100980.0,100970.0,0.14361072]
[1734201366439,0.3613,100980.0,100970.0,0.17391072]
[1734201367725,0.3613,100980.0,100970.0,0.53471072]
[1734201367726,0.0005,100980.0,100970.0,0.53471072]
[1734201367933,0.0005,100980.0,100970.0,0.83471072]
[1734201368131,0.0005,100980.0,100970.0,1.01260198]
[1734201368335,0.3933,101000.0,100990.0,0.049512]
[1734201368636,0.53689572,101000.0,100980.0,0.113616]
[1734201368832,0.45488872,100990.0,100980.0,0.082816]
[1734201369139,0.45488872,100990.0,100980.0,0.049516]
[1734201369428,0.3608,100990.0,100980.0,0.049516]
[1734201370740,0.3608,100990.0,100980.0,0.14360472]
[1734201370938,0.3608,100990.0,100980.0,0.17660472]
[1734201371328,0.3933,101000.0,100990.0,0.049512]
[1734201371529,0.3933,101000.0,100990.0,0.14360072]
[1734201371839,0.3933,101000.0,100990.0,0.09408872]
[1734201372231,0.3933,101000.0,100990.0,0.049512]
[1734201372434,0.45488872,101000.0,100980.0,0.082515]
[1734201372628,0.50440072,100990.0,100980.0,0.049515]
[1734201372940,0.45488872,100990.0,100980.0,0.049515]
[1734201373141,0.3608,100990.0,100980.0,0.049515]
[1734201373637,0.3924,101000.0,100980.0,0.14360372]
[1734201373831,0.3924,101000.0,100990.0,0.14360072]
[1734201374229,0.3924,101000.0,100990.0,0.049512]
[1734201375138,0.3608,101000.0,100990.0,0.14360072]
[1734201375341,0.3608,101000.0,100990.0,0.17690072]
[1734201376227,0.3608,101000.0,100990.0,0.20950072]
[1734201376834,0.441203,101010.0,100990.0,0.87030072]
[1734201376835,0.08882782,101010.0,100990.0,0.87030072]
[1734201377034,0.19757733,101030.0,100990.0,0.87030072]
[1734201377035,0.56792602,101030.0,101010.0,0.049502]
[1734201377233,0.44962782,101030.0,101020.0,0.049497]
[1734201377536,0.3608,101030.0,101020.0,0.049497]
[1734201379836,0.410292,101030.0,101020.0,0.049497]
[1734201381640,0.49911982,101030.0,101020.0,0.049497]
[1734201382341,0.44962782,101030.0,101020.0,0.049497]
[1734201382641,0.44962782,101030.0,101020.0,0.14358572]
[1734201383038,0.44962782,101030.0,101020.0,0.049497]
[1734201383438,0.3608,101030.0,101020.0,0.049497]
[1734201383640,0.44962782,101030.0,101020.0,0.049497]
[1734201384339,0.59320854,101030.0,101020.0,0.049497]
[1734201384942,0.49911982,101030.0,101020.0,0.049497]
[1734201385742,0.49911982,101030.0,101020.0,0.14358572]
[1734201385941,0.44962782,101030.0,101020.0,0.14358572]
[1734201386346,0.08882782,101030.0,101020.0,0.14358572]
[1734201387044,0.44962782,101030.0,101020.0,0.14358572]
[1734201387440,0.44962782,101030.0,101020.0,0.049497]
[1734201387641,0.49911982,101030.0,101020.0,0.049497]
[1734201388545,0.61741802,101030.0,101020.0,0.049497]
[1734201389346,0.61791802,101030.0,101020.0,0.049497]
[1734201390138,0.61741802,101030.0,101020.0,0.049497]
[1734201390945,0.61741802,101030.0,101010.0,0.05856129]
[1734201390946,0.049497,101020.0,101010.0,0.05856129]
[1734201391145,0.61742302,101020.0,101010.0,0.05856129]
[1734201391449,0.61742302,101020.0,101010.0,0.049501]
[1734201391450,0.74341174,101020.0,101010.0,0.049501]
[1734201391644,0.049502,101010.0,101000.0,0.415505]
[1734201391839,0.59296397,101010.0,101000.0,0.049505]
[1734201392152,0.62268892,101010.0,101000.0,0.049505]
[1734201392348,0.049507,101000.0,100990.0,0.049511]
[1734201392647,0.77330142,101000.0,100990.0,0.049511]
[1734201392836,0.6792127,101000.0,100990.0,0.049511]
[1734201393448,0.68469392,101000.0,100990.0,0.049511]
[1734201393950,0.049512,100990.0,100980.0,0.05111459]
[1734201394247,0.71134011,100990.0,100980.0,0.05161459]
[1734201396039,0.77078325,100990.0,100980.0,0.05161459]
[1734201396242,0.65399892,100990.0,100980.0,0.05161459]
[1734201396446,0.5599102,100990.0,100980.0,0.05161459]
[1734201396655,0.74268658,100990.0,100980.0,0.05161459]
[1734201396845,0.65399892,100990.0,100980.0,0.05161459]
[1734201397253,0.65399892,100990.0,100980.0,0.05111459]
[1734201397845,0.5599102,100990.0,100980.0,0.05111459]
[1734201398347,0.5599102,100990.0,100980.0,0.05161459]
[1734201399360,0.64859761,100990.0,100980.0,0.05111459]
[1734201399546,0.5599102,100990.0,100980.0,0.05111459]
[1734201399946,0.64859655,100990.0,100980.0,0.05111459]
[1734201400247,0.64859564,100990.0,100980.0,0.05161459]
[1734201401261,0.64859564,100990.0,100980.0,0.05111459]
[1734201402152,0.64859564,100990.0,100980.0,0.05161459]
[1734201403157,0.64859564,100990.0,100980.0,0.05111459]
[1734201403553,0.74268436,100990.0,100980.0,0.00159959]
[1734201403748,0.65399892,100990.0,100980.0,0.00159959]
[1734201403944,0.74267152,100990.0,100980.0,0.00159959]
[1734201404154,0.74267152,100990.0,100980.0,0.00209959]
[1734201404554,0.65399892,100990.0,100980.0,0.00209959]
[1734201404854,0.5599102,100990.0,100980.0,0.00209959]
[1734201405052,0.56775468,100990.0,100980.0,0.14570531]
[1734201405254,0.08865648,100990.0,100980.0,0.14570531]
[1734201405450,0.67926268,101000.0,100980.0,0.53880531]
[1734201405654,0.20016448,101000.0,100990.0,0.049512]
[1734201405860,0.53086448,101000.0,100990.0,0.049512]
[1734201406254,0.49896448,101000.0,100990.0,0.049512]
[1734201407656,0.44945648,101000.0,100990.0,0.14360072]
[1734201407849,0.65025768,101010.0,101000.0,0.049507]
[1734201408049,0.53195948,101010.0,101000.0,0.049507]
[1734201408455,0.49895948,101010.0,101000.0,0.049507]
[1734201410165,0.13815948,101010.0,101000.0,0.049507]
[1734201410461,0.49895948,101010.0,101000.0,0.049507]
[1734201411163,0.44945648,101020.0,101010.0,0.049502]
[1734201411356,0.3608,101020.0,101010.0,0.17429072]
[1734201411557,0.49945048,101030.0,101010.0,0.17429072]
[1734201411761,0.49945048,101030.0,101020.0,0.049497]
[1734201412169,0.49895048,101030.0,101020.0,0.049497]
[1734201413366,0.49945048,101030.0,101020.0,0.049497]
[1734201414366,0.49895048,101030.0,101020.0,0.049497]
[1734201415260,0.49945048,101030.0,101020.0,0.049497]
[1734201416168,0.5930392,101030.0,101020.0,0.049497]
[1734201416770,0.7113374,101030.0,101020.0,0.049497]
[1734201416966,0.049497,101020.0,101010.0,0.22739226]
[1734201417170,0.68733945,101020.0,101010.0,0.049501]
[1734201418474,0.80563765,101020.0,101010.0,0.049501]
[1734201418973,0.049502,101010.0,101000.0,0.22739726]
[1734201419160,0.59304445,101010.0,101000.0,0.049506]
[1734201419360,0.61725393,101010.0,101000.0,0.049506]
[1734201422976,0.61725393,101010.0,100990.0,0.25197998]
[1734201422977,0.66184065,101010.0,100990.0,0.25197998]
[1734201423165,0.50439572,101000.0,100990.0,0.049511]
[1734201423369,0.53709572,101000.0,100990.0,0.049511]
[1734201423668,0.68914945,101000.0,100990.0,0.049511]
[1734201424263,0.59506073,101000.0,100990.0,0.049511]
[1734201427876,0.71335893,101000.0,100990.0,0.049511]
[1734201428470,0.56775193,101000.0,100990.0,0.14359972]
[1734201428690,0.44945373,101000.0,100990.0,0.17409972]
[1734201428990,0.44945373,101000.0,100990.0,0.38289098]
[1734201430100,0.53791077,101010.0,101000.0,0.049507]
[1734201430291,0.41961257,101010.0,101000.0,0.049507]
[1734201430903,0.50837704,101010.0,101000.0,0.22687982]
[1734201431397,0.62672967,101010.0,101000.0,0.22687982]
[1734201431797,0.50837704,101010.0,101000.0,0.22687982]
[1734201432186,0.45887404,101010.0,101000.0,0.14359572]
[1734201432390,0.3608,101010.0,101000.0,0.36428844]
[1734201432600,0.3608,101010.0,101000.0,0.58746563]
[1734201432895,0.44956447,101020.0,101010.0,0.049502]
[1734201433098,0.44956447,101020.0,101010.0,0.35124327]
[1734201433283,0.44956447,101020.0,101010.0,0.61834036]
[1734201433489,0.6794111,101030.0,101010.0,0.56883836]
[1734201433690,0.6794111,101030.0,101020.0,0.049497]
[1734201434196,0.6789111,101030.0,101020.0,0.049497]
[1734201434700,0.59014663,101030.0,101020.0,0.049497]
[1734201434893,0.59915777,101030.0,101020.0,0.049497]
[1734201436695,0.56794383,101030.0,101020.0,0.14358572]
[1734201436895,0.56794383,101030.0,101020.0,0.32093827]
[1734201437493,0.4495912,101030.0,101020.0,0.32093827]
[1734201437694,0.4495912,101030.0,101020.0,0.22684955]
[1734201437898,0.71152455,101030.0,101010.0,0.50666954]
[1734201438088,0.443497,101020.0,101010.0,0.46334964]
[1734201438409,0.5322882,101020.0,101010.0,0.46334964]
[1734201441004,0.74472955,101020.0,101010.0,0.0495]
[1734201441198,0.65064083,101020.0,101010.0,0.0495]
[1734201443898,0.56184963,101020.0,101010.0,0.0495]
[1734201445592,0.60644135,101020.0,101010.0,0.17735255]
[1734201445895,0.049502,101010.0,101000.0,0.47253443]
[1734201446202,0.13832759,101010.0,101000.0,0.47253443]
[1734201449806,0.25668022,101010.0,101000.0,0.47253443]
[1734201450100,0.13832759,101010.0,101000.0,0.5666323]
[1734201450305,0.13832759,101010.0,101000.0,0.3892706]
[1734201452204,0.65067622,101020.0,101000.0,0.60998027]
[1734201452407,0.61747622,101020.0,101010.0,0.049502]
[1734201452604,0.52865063,101020.0,101010.0,0.22689326]
[1734201453507,0.61750723,101020.0,101010.0,0.22689326]
[1734201454398,0.52865063,101020.0,101010.0,0.22689326]
[1734201454606,0.61752094,101020.0,101010.0,0.22689326]
[1734201454995,0.61752094,101020.0,101010.0,0.32098198]
[1734201455208,0.61752094,101020.0,101010.0,0.55747907]
[1734201455506,0.08887031,101020.0,101010.0,1.36219294]
[1734201455803,0.56802294,101030.0,101020.0,0.049497]
[1734201456005,0.56802294,101030.0,101020.0,0.63191036]
[1734201456310,0.56802294,101030.0,101020.0,0.58859465]
[1734201456904,0.71160366,101030.0,101020.0,0.22684368]
[1734201457109,0.68783335,101030.0,101020.0,0.22684368]
[1734201457500,0.59374463,101030.0,101020.0,0.22684368]
[1734201458006,0.74168542,101030.0,101020.0,0.22684368]
[1734201458404,0.74168542,101030.0,101020.0,0.46330593]
[1734201458904,0.74168542,101030.0,101010.0,0.45291008]
[1734201458905,0.049497,101020.0,101010.0,0.46330993]
[1734201459106,0.80259237,101020.0,101010.0,0.46330993]
[1734201459308,0.80259237,101020.0,101010.0,0.22684768]
[1734201459511,0.68402651,101020.0,101010.0,0.22684768]
[1734201459706,0.86155546,101020.0,101010.0,0.22684768]
[1734201460408,0.86155546,101020.0,101010.0,0.049501]
[1734201460710,0.86187077,101020.0,101010.0,0.049501]
[1734201461009,0.86187077,101020.0,101010.0,0.22684768]
[1734201464016,0.87126228,101020.0,101010.0,0.22684768]
[1734201464511,0.87126228,101020.0,101000.0,0.46331393]
[1734201464512,0.049502,101010.0,101000.0,0.46331393]
[1734201464704,0.52889952,101010.0,101000.0,0.46331393]
[1734201465718,0.61784836,101010.0,101000.0,0.28596725]
[1734201466517,0.61784836,101010.0,101000.0,0.32928671]
[1734201467413,0.61784836,101010.0,101000.0,0.58158861]
[1734201467609,0.61784836,101010.0,101000.0,0.62490807]
[1734201468112,0.52889952,101010.0,101000.0,0.28596725]
[1734201468309,0.52889952,101010.0,101000.0,0.38005597]
[1734201468509,0.47939752,101010.0,101000.0,0.17569372]
[1734201468704,0.47939752,101010.0,101000.0,0.47131508]
[1734201469408,0.47939752,101010.0,101000.0,0.70355679]
[1734201470313,0.47939752,101010.0,101000.0,0.37722636]
[1734201470516,0.47939752,101010.0,101000.0,0.60952657]
[1734201470810,0.52889952,101010.0,101000.0,0.60952657]
[1734201471016,0.52889952,101010.0,101000.0,0.37722636]
[1734201473507,0.52889952,101010.0,101000.0,0.84686683]
[1734201474102,0.52889952,101010.0,101000.0,0.94095555]
[1734201474309,0.61787127,101010.0,101000.0,0.98427501]
[1734201474708,0.20756927,101010.0,101000.0,0.98427501]
[1734201474914,0.08897175,101010.0,101000.0,0.74732933]
[1734201475107,0.20756927,101020.0,101000.0,1.83851415]
[1734201475313,0.08897175,101020.0,101010.0,0.95790473]
[1734201475516,0.08897175,101020.0,101010.0,1.5876614]
[1734201476018,0.56836927,101030.0,101020.0,0.049497]
[1734201476221,0.56836927,101030.0,101020.0,0.41178715]
[1734201476518,0.20756927,101030.0,101020.0,0.41178715]
[1734201476714,0.20756927,101030.0,101020.0,0.9396083]
[1734201477516,0.20756927,101030.0,101020.0,0.70791244]
[1734201477709,0.20756927,101030.0,101020.0,0.98291927]
[1734201477710,0.08897175,101030.0,101020.0,0.98291927]
[1734201478622,0.08897175,101030.0,101020.0,0.45509615]
[1734201479015,0.08897175,101030.0,101020.0,0.41178715]
[1734201482418,0.08897175,101030.0,101020.0,0.58926875]
[1734201482625,0.08897175,101030.0,101020.0,0.41178715]
[1734201483021,0.08897175,101030.0,101020.0,0.42111656]
[1734201486717,0.08897175,101030.0,101020.0,0.32702784]
[1734201486917,0.08897175,101030.0,101020.0,0.50449495]
[1734201487129,0.49926375,101030.0,101020.0,0.47309495]
[1734201487323,0.71194999,101030.0,101020.0,0.23629352]
[1734201487622,0.68206127,101030.0,101020.0,0.23629352]
[1734201487825,0.77614999,101030.0,101020.0,0.23629352]
[1734201488623,0.77614999,101030.0,101020.0,0.05882641]
[1734201488935,0.83543434,101030.0,101020.0,0.05882641]
[1734201489522,0.71683682,101030.0,101020.0,0.00932941]
[1734201489721,0.71683682,101030.0,101010.0,0.049501]
[1734201489722,0.049497,101020.0,101010.0,0.049501]
[1734201489923,0.77107957,101020.0,101010.0,0.049501]
[1734201490125,0.049502,101010.0,101000.0,0.52507254]
[1734201490336,0.49913131,101010.0,101000.0,0.49447254]
[1734201490728,0.49913131,101010.0,101000.0,0.59783976]
[1734201490929,0.08882931,101010.0,101000.0,0.59783976]
[1734201491129,0.64896606,101020.0,101010.0,0.049502]
[1734201491430,0.64896606,101020.0,101010.0,0.22708074]
[1734201491431,0.56013675,101020.0,101010.0,0.22708074]
[1734201492335,0.64897005,101020.0,101010.0,0.32116946]
[1734201492639,0.64897005,101020.0,101010.0,0.22708074]
[1734201493130,0.64897601,101020.0,101010.0,0.22708074]
[1734201493735,0.56013675,101020.0,101010.0,0.22708074]
[1734201493930,0.64898155,101020.0,101010.0,0.22708074]
[1734201494533,0.59948255,101020.0,101010.0,0.22708074]
[1734201494735,0.56808255,101020.0,101010.0,0.46388217]
[1734201495040,0.56808255,101020.0,101010.0,0.49398217]
[1734201495929,0.4496448,101020.0,101010.0,0.58807089]
[1734201496322,0.0888448,101020.0,101010.0,0.58807089]
[1734201496531,0.61757955,101020.0,101010.0,0.63138576]
[1734201496727,0.61757955,101020.0,101010.0,0.46388217]
[1734201497931,0.25677955,101020.0,101010.0,0.55797089]
[1734201498237,0.0888448,101020.0,101010.0,0.55797089]
[1734201498642,0.0888448,101020.0,101010.0,0.60128527]
[1734201498829,0.20728255,101020.0,101010.0,0.60128527]
[1734201499028,0.20728255,101020.0,101010.0,0.42370653]
[1734201499231,0.0888448,101020.0,101010.0,1.363454]
[1734201499440,0.61757655,101030.0,101020.0,0.049497]
[1734201499741,0.61757655,101030.0,101020.0,0.55826799]
[1734201501134,0.56808255,101030.0,101020.0,0.55826799]
[1734201501335,0.56808255,101030.0,101020.0,0.62056799]
[1734201501537,0.56808255,101030.0,101020.0,0.44284702]
[1734201502345,0.20728255,101030.0,101020.0,0.44284702]
[1734201502538,0.0888448,101030.0,101020.0,1.01445138]
[1734201503031,0.0888448,101030.0,101020.0,1.01450593]
[1734201506241,0.0888448,101030.0,101020.0,0.97119731]
[1734201506443,0.0888448,101030.0,101020.0,0.98073611]
[1734201507946,0.0888448,101030.0,101020.0,1.02404469]
[1734201509933,0.0888448,101030.0,101020.0,0.98073611]
[1734201510646,0.0888448,101030.0,101020.0,1.02404464]
[1734201511534,0.0888448,101030.0,101020.0,1.02424304]
[1734201511743,0.4496448,101030.0,101020.0,1.02424304]
[1734201512049,0.0888448,101030.0,101020.0,0.99254304]
[1734201512945,0.0888448,101030.0,101020.0,0.99342171]
[1734201513134,0.0888448,101030.0,101020.0,0.76011964]
[1734201513335,0.4496448,101030.0,101020.0,0.99342109]
[1734201513538,0.4496448,101030.0,101020.0,0.99341909]
[1734201513741,0.4496448,101030.0,101020.0,0.76011964]
[1734201514336,0.4496448,101030.0,101020.0,0.77991013]
[1734201515641,0.61757455,101030.0,101020.0,0.36990563]
[1734201515844,0.61757455,101030.0,101020.0,0.46422416]
[1734201516149,0.59052975,101030.0,101020.0,0.46422416]
[1734201516347,0.67936231,101030.0,101020.0,0.46422416]
[1734201516844,0.59052975,101030.0,101020.0,0.46422416]
[1734201517644,0.73878585,101030.0,101020.0,0.22726286]
[1734201518246,0.6203481,101030.0,101020.0,0.22726286]
[1734201518645,0.6203481,101030.0,101020.0,0.049497]
[1734201518845,0.6203481,101030.0,101020.0,0.22726286]
[1734201519747,0.7387925,101030.0,101020.0,0.22726286]
[1734201521156,0.6203481,101030.0,101020.0,0.22726286]
[1734201522856,0.67705387,101030.0,101020.0,0.55831288]
[1734201523248,0.52879777,101030.0,101020.0,0.38054702]
[1734201523454,0.61767935,101030.0,101020.0,0.71998329]
[1734201523653,0.61767935,101030.0,101020.0,0.95317491]
[1734201524049,0.61767935,101030.0,101020.0,0.95289006]
[1734201524654,0.61767935,101030.0,101020.0,0.90957908]
[1734201525056,0.61767935,101030.0,101020.0,0.94177908]
[1734201525462,0.617731,101030.0,101020.0,0.94177908]
[1734201525861,0.52879777,101030.0,101020.0,0.94177908]
[1734201526254,0.47930577,101030.0,101020.0,0.94177908]
[1734201527761,0.47930577,101030.0,101020.0,0.70481778]
[1734201530557,0.47930577,101030.0,101020.0,0.61072906]
[1734201530759,0.5585481,101030.0,101020.0,0.46472069]
[1734201531158,0.6207481,101030.0,101020.0,0.46472069]
[1734201531362,0.79827705,101030.0,101020.0,0.46472069]
[1734201531560,0.6207481,101030.0,101020.0,0.46472069]
[1734201534264,0.71483682,101030.0,101020.0,0.46472069]
[1734201534458,0.89236577,101030.0,101020.0,0.22745557]
[1734201534660,0.71483682,101030.0,101020.0,0.41522369]
[1734201534859,0.71483682,101030.0,101010.0,0.58842145]
[1734201534860,0.75366704,101030.0,101010.0,0.46472369]
[1734201535069,0.68384302,101020.0,101010.0,0.46472369]
[1734201535669,0.80234386,101020.0,101010.0,0.46472369]
[1734201536568,0.80232591,101020.0,101010.0,0.46472369]
[1734201536970,0.68384302,101020.0,101010.0,0.46472369]
[1734201537466,0.5897543,101020.0,101010.0,0.46472369]
[1734201537669,0.11846073,101020.0,101010.0,0.42417257]
[1734201537862,0.11846073,101020.0,101010.0,0.44405384]
[1734201538065,0.20731424,101020.0,101010.0,0.97362294]
[1734201538266,0.20731424,101020.0,101010.0,1.01693608]
[1734201538467,0.08885351,101020.0,101010.0,0.77967096]
[1734201539675,0.08885351,101020.0,101010.0,1.1344166]
[1734201540079,0.08885351,101020.0,101010.0,1.4952166]
[1734201540278,0.61760724,101030.0,101020.0,0.049497]
[1734201540576,0.61760724,101030.0,101020.0,0.3807447]
[1734201540873,0.61760724,101030.0,101020.0,0.4127447]
[1734201541081,0.52875373,101030.0,101020.0,0.4127447]
[1734201541668,0.52875373,101030.0,101020.0,0.31865598]
[1734201543678,0.67691103,101030.0,101020.0,0.31865598]
[1734201547977,0.67691103,101030.0,101020.0,0.32830741]
[1734201549478,0.67691103,101030.0,101020.0,0.50623419]
[1734201549679,0.5584503,101030.0,101020.0,0.47423419]
[1734201549885,0.5584503,101030.0,101020.0,0.29630741]
[1734201550183,0.67694819,101030.0,101020.0,0.29630741]
[1734201550594,0.5909453,101040.0,101020.0,0.39039613]
[1734201550886,0.5909453,101040.0,101030.0,0.55873399]
[1734201551071,0.62746264,101040.0,101030.0,0.55873399]
[1734201551375,0.47930534,101040.0,101030.0,0.45511943]
[1734201551581,0.47930534,101040.0,101030.0,0.47601116]
[1734201552587,0.20736345,101040.0,101030.0,1.0051911]
[1734201552783,0.20736345,101040.0,101030.0,1.00510357]
[1734201553178,0.56816345,101040.0,101030.0,1.00510357]
[1734201553383,0.56816345,101040.0,101030.0,0.91116795]
[1734201553584,0.56816345,101040.0,101030.0,0.6779602]
[1734201554378,0.56816345,101040.0,101030.0,0.38183491]
[1734201555383,0.56816345,101040.0,101030.0,0.6779602]
[1734201555586,0.56816345,101040.0,101030.0,0.38183491]
[1734201556988,0.56816345,101040.0,101030.0,0.47592363]
[1734201558485,0.44965811,101040.0,101030.0,0.47592363]
[1734201560992,0.08885811,101040.0,101030.0,0.93081235]